[Event "*** Titled Tuesday Blitz"]
[Site "Chess.com"]
[Date "2020.04.07"]
[Round "3"]
[White "RestartingChess"]
[Black "Qingdom"]
[Result "1-0"]
[WhiteElo "2357"]
[BlackElo "2112"]
[TimeControl "180+1"]
[EndTime "13:29:44 PDT"]
[Termination "RestartingChess won by checkmate"]

1. e4 {[%clk 0:03:00.9]} 1... c5 {[%clk 0:02:59.9]} 2. Nc3 {[%clk 0:03:00]} 2...
Nc6 {[%clk 0:03:00]} 3. f4 {[%clk 0:03:00.2]} 3... e6 {[%clk 0:02:59.3]} 4. Nf3
{[%clk 0:03:00.7]} 4... Nf6 {[%clk 0:02:58.8]} 5. Bb5 {[%clk 0:02:59.5]} 5...
Nd4 {[%clk 0:02:58.7]} 6. e5 {[%clk 0:02:50.2]} 6... Nxb5 {[%clk 0:02:56.4]} 7.
Nxb5 {[%clk 0:02:47.3]} 7... Nd5 {[%clk 0:02:55.9]} 8. d3 {[%clk 0:02:11.7]}
8... Qa5+ {[%clk 0:02:50.2]} 9. Nc3 {[%clk 0:02:12.1]} 9... Nxc3 {[%clk
0:02:50.4]} 10. Qd2 {[%clk 0:02:07.3]} 10... d5 {[%clk 0:02:43.8]} 11. bxc3
{[%clk 0:02:06]} 11... Be7 {[%clk 0:02:42.3]} 12. O-O {[%clk 0:02:05.7]} 12...
Bd7 {[%clk 0:02:41.4]} 13. c4 {[%clk 0:01:57.1]} 13... Qxd2 {[%clk 0:02:40.1]}
14. Nxd2 {[%clk 0:01:58]} 14... dxc4 {[%clk 0:02:37.9]} 15. Nxc4 {[%clk
0:01:58.9]} 15... O-O {[%clk 0:02:34.9]} 16. Be3 {[%clk 0:01:58.2]} 16... Bc6
{[%clk 0:02:30.7]} 17. Rab1 {[%clk 0:01:53.9]} 17... b6 {[%clk 0:02:25.8]} 18.
g4 {[%clk 0:01:49.1]} 18... f6 {[%clk 0:02:07.8]} 19. f5 {[%clk 0:01:35.9]}
19... exf5 {[%clk 0:02:04.8]} 20. gxf5 {[%clk 0:01:35.5]} 20... Bd5 {[%clk
0:01:57.6]} 21. e6 {[%clk 0:01:34.5]} 21... Bxc4 {[%clk 0:01:51.5]} 22. dxc4
{[%clk 0:01:33.8]} 22... Rfd8 {[%clk 0:01:51.4]} 23. Rbd1 {[%clk 0:01:34.3]}
23... g6 {[%clk 0:01:40.5]} 24. Rd5 {[%clk 0:01:27.9]} 24... Rxd5 {[%clk
0:01:26.8]} 25. cxd5 {[%clk 0:01:27.7]} 25... Rd8 {[%clk 0:01:23.2]} 26. c4
{[%clk 0:00:53.9]} 26... b5 {[%clk 0:01:23.1]} 27. fxg6 {[%clk 0:00:53.3]} 27...
hxg6 {[%clk 0:01:21.9]} 28. cxb5 {[%clk 0:00:41.4]} 28... Rxd5 {[%clk
0:01:21.2]} 29. Rc1 {[%clk 0:00:41.9]} 29... Re5 {[%clk 0:01:17.2]} 30. Kf2
{[%clk 0:00:41.8]} 30... f5 {[%clk 0:01:10.3]} 31. a4 {[%clk 0:00:38]} 31...
Rxe3 {[%clk 0:01:08]} 32. Kxe3 {[%clk 0:00:18.7]} 32... Bg5+ {[%clk 0:01:07.8]}
33. Kf3 {[%clk 0:00:19.6]} 33... Bxc1 {[%clk 0:01:07.4]} 34. a5 {[%clk
0:00:20.5]} 34... Bd2 {[%clk 0:00:22.9]} 35. b6 {[%clk 0:00:19.7]} 35... axb6
{[%clk 0:00:21.5]} 36. a6 {[%clk 0:00:17.8]} 36... c4 {[%clk 0:00:17.4]} 37. a7
{[%clk 0:00:18]} 37... c3 {[%clk 0:00:18]} 38. a8=Q+ {[%clk 0:00:18.1]} 38...
Kg7 {[%clk 0:00:18.6]} 39. Qb7+ {[%clk 0:00:17.5]} 39... Kf6 {[%clk 0:00:18.5]}
40. Qf7+ {[%clk 0:00:17.8]} 40... Ke5 {[%clk 0:00:18.8]} 41. e7 {[%clk
0:00:17.4]} 41... Kd4 {[%clk 0:00:19.1]} 42. e8=Q {[%clk 0:00:17.6]} 42... Kd3
{[%clk 0:00:19.8]} 43. Qe2+ {[%clk 0:00:16.3]} 43... Kc2 {[%clk 0:00:19.6]} 44.
Qa2+ {[%clk 0:00:16.5]} 44... Kc1 {[%clk 0:00:20]} 45. Qf1+ {[%clk 0:00:14.7]}
45... Be1 {[%clk 0:00:19.5]} 46. Qxe1# {[%clk 0:00:15.3]} 1-0

[Event "*** Titled Tuesday Blitz"]
[Site "Chess.com"]
[Date "2020.04.07"]
[Round "3"]
[White "Girkassa"]
[Black "GMNeiksans"]
[Result "0-1"]
[WhiteElo "2446"]
[BlackElo "2841"]
[TimeControl "180+1"]
[EndTime "13:29:46 PDT"]
[Termination "GMNeiksans won on time"]

1. d4 {[%clk 0:03:00.9]} 1... Nf6 {[%clk 0:02:58.6]} 2. c4 {[%clk 0:03:00.9]}
2... b6 {[%clk 0:02:59]} 3. Nc3 {[%clk 0:02:59.2]} 3... Bb7 {[%clk 0:02:58.2]}
4. Nf3 {[%clk 0:02:57.7]} 4... e6 {[%clk 0:02:56.5]} 5. a3 {[%clk 0:02:57.4]}
5... d5 {[%clk 0:02:54.6]} 6. cxd5 {[%clk 0:02:56.6]} 6... Nxd5 {[%clk
0:02:54.8]} 7. Qc2 {[%clk 0:02:56.5]} 7... Nxc3 {[%clk 0:02:53.7]} 8. bxc3
{[%clk 0:02:56]} 8... Be7 {[%clk 0:02:54.1]} 9. e4 {[%clk 0:02:56.1]} 9... O-O
{[%clk 0:02:53.8]} 10. Bd3 {[%clk 0:02:56.1]} 10... c5 {[%clk 0:02:52.9]} 11.
O-O {[%clk 0:02:55.8]} 11... cxd4 {[%clk 0:02:52.1]} 12. cxd4 {[%clk 0:02:55.4]}
12... Nd7 {[%clk 0:02:51.2]} 13. Bb2 {[%clk 0:02:52.4]} 13... Rc8 {[%clk
0:02:50.4]} 14. Qe2 {[%clk 0:02:52.6]} 14... Nf6 {[%clk 0:02:50.6]} 15. d5
{[%clk 0:02:41.1]} 15... exd5 {[%clk 0:02:48.6]} 16. e5 {[%clk 0:02:41.2]} 16...
Ne4 {[%clk 0:02:48.6]} 17. Nd4 {[%clk 0:02:41]} 17... Bc5 {[%clk 0:02:24.3]} 18.
Kh1 {[%clk 0:02:26.1]} 18... Re8 {[%clk 0:02:17.7]} 19. Nf5 {[%clk 0:02:23.9]}
19... Qg5 {[%clk 0:02:11.6]} 20. Bxe4 {[%clk 0:01:39.9]} 20... dxe4 {[%clk
0:02:10.8]} 21. Nd6 {[%clk 0:01:40.3]} 21... Bxd6 {[%clk 0:01:43.9]} 22. exd6
{[%clk 0:01:39.6]} 22... Rcd8 {[%clk 0:01:42.4]} 23. Rfd1 {[%clk 0:01:34.5]}
23... Rd7 {[%clk 0:01:39.4]} 24. Rac1 {[%clk 0:01:28.4]} 24... Red8 {[%clk
0:01:34.8]} 25. Rc7 {[%clk 0:01:25.3]} 25... h6 {[%clk 0:01:14.6]} 26. h3 {[%clk
0:01:10.6]} 26... e3 {[%clk 0:01:09]} 27. f3 {[%clk 0:01:06.3]} 27... Rxd6
{[%clk 0:00:59.3]} 28. Rxd6 {[%clk 0:00:28.8]} 28... Rxd6 {[%clk 0:01:00.2]} 29.
Qc4 {[%clk 0:00:28.4]} 29... Bd5 {[%clk 0:00:28.4]} 30. Rc8+ {[%clk 0:00:27.2]}
30... Kh7 {[%clk 0:00:20.6]} 31. Qd3+ {[%clk 0:00:20.4]} 31... Rg6 {[%clk
0:00:20.6]} 32. Rc2 {[%clk 0:00:12.8]} 32... Bxf3 {[%clk 0:00:19.6]} 33. Qf1
{[%clk 0:00:07.5]} 33... e2 {[%clk 0:00:18.9]} 0-1

[Event "*** Titled Tuesday Blitz"]
[Site "Chess.com"]
[Date "2020.04.07"]
[Round "3"]
[White "IMJonathanCarlstedt"]
[Black "Bryakin_Mikhail"]
[Result "0-1"]
[WhiteElo "2464"]
[BlackElo "2752"]
[TimeControl "180+1"]
[EndTime "13:29:46 PDT"]
[Termination "Bryakin_Mikhail won on time"]

1. d4 {[%clk 0:03:00.9]} 1... f5 {[%clk 0:02:58.3]} 2. Bf4 {[%clk 0:02:58.1]}
2... Nf6 {[%clk 0:02:57.2]} 3. e3 {[%clk 0:02:57.7]} 3... d5 {[%clk 0:02:56.7]}
4. Nc3 {[%clk 0:02:54.5]} 4... c6 {[%clk 0:02:56.6]} 5. Bd3 {[%clk 0:02:53.1]}
5... e6 {[%clk 0:02:56.5]} 6. Qf3 {[%clk 0:02:52.1]} 6... Bd6 {[%clk 0:02:53.6]}
7. h4 {[%clk 0:02:51.1]} 7... Qe7 {[%clk 0:02:52.1]} 8. Nh3 {[%clk 0:02:50.3]}
8... Nbd7 {[%clk 0:02:50.9]} 9. Qg3 {[%clk 0:02:41.2]} 9... Bxf4 {[%clk
0:02:48.1]} 10. Nxf4 {[%clk 0:02:40.2]} 10... e5 {[%clk 0:02:40.1]} 11. dxe5
{[%clk 0:02:39.7]} 11... Nxe5 {[%clk 0:02:41]} 12. O-O-O {[%clk 0:02:37]} 12...
Bd7 {[%clk 0:02:36.8]} 13. Nce2 {[%clk 0:02:28.6]} 13... O-O-O {[%clk
0:02:22.9]} 14. h5 {[%clk 0:02:22.2]} 14... Ne4 {[%clk 0:02:17.8]} 15. Bxe4
{[%clk 0:02:18]} 15... fxe4 {[%clk 0:02:18.2]} 16. f3 {[%clk 0:02:15]} 16...
exf3 {[%clk 0:02:12.1]} 17. gxf3 {[%clk 0:02:14.6]} 17... Rhf8 {[%clk
0:02:06.8]} 18. e4 {[%clk 0:02:04.9]} 18... dxe4 {[%clk 0:02:02.8]} 19. fxe4
{[%clk 0:02:04.3]} 19... Bg4 {[%clk 0:01:57.3]} 20. Rxd8+ {[%clk 0:01:46.8]}
20... Rxd8 {[%clk 0:01:57]} 21. Nc3 {[%clk 0:01:31.1]} 21... Rf8 {[%clk
0:01:05.6]} 22. Nd3 {[%clk 0:00:51.5]} 22... Nxd3+ {[%clk 0:01:01.2]} 23. cxd3
{[%clk 0:00:50.8]} 23... Bd7 {[%clk 0:00:58.2]} 24. Rg1 {[%clk 0:00:41]} 24...
Rf7 {[%clk 0:00:58.1]} 25. e5 {[%clk 0:00:34.4]} 25... Bf5 {[%clk 0:00:55.5]}
26. Qe3 {[%clk 0:00:22.5]} 26... b6 {[%clk 0:00:54.2]} 27. d4 {[%clk 0:00:22.4]}
27... Qe6 {[%clk 0:00:50.9]} 28. b3 {[%clk 0:00:20.5]} 28... Kb7 {[%clk
0:00:50.8]} 29. Kb2 {[%clk 0:00:20.2]} 29... Rd7 {[%clk 0:00:51.3]} 30. Rd1
{[%clk 0:00:19.2]} 30... g6 {[%clk 0:00:51.5]} 31. hxg6 {[%clk 0:00:18.5]} 31...
hxg6 {[%clk 0:00:51.8]} 32. Qf3 {[%clk 0:00:17.5]} 32... Bg4 {[%clk 0:00:51.1]}
33. d5 {[%clk 0:00:14.9]} 33... cxd5 {[%clk 0:00:44.2]} 34. Qh1 {[%clk
0:00:08.2]} 34... Bxd1 {[%clk 0:00:44.1]} 35. Qxd1 {[%clk 0:00:08.5]} 35... Qxe5
{[%clk 0:00:43.8]} 36. Qg4 {[%clk 0:00:08.1]} 36... Qf5 {[%clk 0:00:35.6]} 37.
Qd4 {[%clk 0:00:08]} 37... g5 {[%clk 0:00:34.6]} 38. Nb5 {[%clk 0:00:06.7]}
38... a6 {[%clk 0:00:33.2]} 39. Nc3 {[%clk 0:00:06.3]} 39... g4 {[%clk
0:00:33.1]} 40. Ne2 {[%clk 0:00:04.4]} 40... Qe4 {[%clk 0:00:33.1]} 41. Qd2
{[%clk 0:00:02.4]} 41... d4 {[%clk 0:00:33.2]} 42. Ng3 {[%clk 0:00:01.1]} 42...
Qe3 {[%clk 0:00:33.5]} 43. Qd1 {[%clk 0:00:01.3]} 43... Qxg3 {[%clk 0:00:33.3]}
0-1

[Event "*** Titled Tuesday Blitz"]
[Site "Chess.com"]
[Date "2020.04.07"]
[Round "3"]
[White "JesseFebruary"]
[Black "killer311"]
[Result "0-1"]
[WhiteElo "1761"]
[BlackElo "2315"]
[TimeControl "180+1"]
[EndTime "13:29:48 PDT"]
[Termination "killer311 won by resignation"]

1. e4 {[%clk 0:03:00.9]} 1... c5 {[%clk 0:02:57.9]} 2. Nf3 {[%clk 0:03:00]} 2...
Nc6 {[%clk 0:02:53.2]} 3. d4 {[%clk 0:02:59.7]} 3... cxd4 {[%clk 0:02:53.6]} 4.
Nxd4 {[%clk 0:03:00.1]} 4... Nf6 {[%clk 0:02:54.2]} 5. Nc3 {[%clk 0:02:59.2]}
5... e5 {[%clk 0:02:54.2]} 6. Nde2 {[%clk 0:02:58.9]} 6... d6 {[%clk 0:02:52.5]}
7. g3 {[%clk 0:02:59.4]} 7... Be7 {[%clk 0:02:49.6]} 8. Bg2 {[%clk 0:02:59.8]}
8... O-O {[%clk 0:02:49.8]} 9. O-O {[%clk 0:02:59.8]} 9... Be6 {[%clk
0:02:47.2]} 10. Be3 {[%clk 0:02:55.3]} 10... Rc8 {[%clk 0:02:46.6]} 11. h3
{[%clk 0:02:55.2]} 11... Qd7 {[%clk 0:02:42.6]} 12. a4 {[%clk 0:02:53]} 12...
Bxh3 {[%clk 0:02:40.5]} 13. Nd5 {[%clk 0:02:49.7]} 13... Bxg2 {[%clk 0:02:38.1]}
14. Kxg2 {[%clk 0:02:50.6]} 14... Nxe4 {[%clk 0:02:36.2]} 15. f3 {[%clk
0:02:39.3]} 15... Nf6 {[%clk 0:02:33.3]} 16. Nec3 {[%clk 0:02:31.6]} 16... Nxd5
{[%clk 0:02:32.4]} 17. Nxd5 {[%clk 0:02:30.9]} 17... Bd8 {[%clk 0:02:27.8]} 18.
Qd3 {[%clk 0:02:22.7]} 18... f5 {[%clk 0:02:26.1]} 19. Qb3 {[%clk 0:02:16]}
19... Qf7 {[%clk 0:02:25]} 20. Rad1 {[%clk 0:02:13.8]} 20... Kh8 {[%clk
0:02:20.5]} 21. Qb5 {[%clk 0:02:07.2]} 21... a6 {[%clk 0:02:17.7]} 22. Qe2
{[%clk 0:02:06.5]} 22... Ne7 {[%clk 0:02:13.3]} 23. Nxe7 {[%clk 0:02:04.2]}
23... Bxe7 {[%clk 0:02:14.2]} 24. Rh1 {[%clk 0:02:04.5]} 24... Rc6 {[%clk
0:02:09.6]} 25. Qd3 {[%clk 0:01:48.5]} 25... Rfc8 {[%clk 0:02:06.5]} 26. c3
{[%clk 0:01:47.9]} 26... Rc4 {[%clk 0:02:02.2]} 27. g4 {[%clk 0:01:45.2]} 27...
e4 {[%clk 0:01:57.2]} 28. Qd5 {[%clk 0:01:28.1]} 28... exf3+ {[%clk 0:01:54.6]}
29. Qxf3 {[%clk 0:01:24.3]} 29... Rxg4+ {[%clk 0:01:53]} 30. Kf1 {[%clk
0:01:12.8]} 30... Qc4+ {[%clk 0:01:52.2]} 31. Ke1 {[%clk 0:01:12.4]} 31... Bh4+
{[%clk 0:01:47.7]} 32. Kd2 {[%clk 0:01:09]} 32... Re8 {[%clk 0:01:28.2]} 33.
Rdg1 {[%clk 0:00:57.4]} 33... Rge4 {[%clk 0:01:16.8]} 34. Rxh4 {[%clk
0:00:18.9]} 34... Rxh4 {[%clk 0:01:14.9]} 35. Qxb7 {[%clk 0:00:19.8]} 35... Rg4
{[%clk 0:01:05.9]} 36. Rxg4 {[%clk 0:00:15.9]} 36... Qxg4 {[%clk 0:01:04.9]} 37.
Qf7 {[%clk 0:00:16.2]} 37... Qe4 {[%clk 0:00:59.6]} 38. Bg5 {[%clk 0:00:11]}
38... Qe6 {[%clk 0:00:52.9]} 39. Qb7 {[%clk 0:00:09.1]} 39... Qe1+ {[%clk
0:00:51.7]} 40. Kc2 {[%clk 0:00:08.4]} 40... Qe4+ {[%clk 0:00:51.3]} 0-1

[Event "*** Titled Tuesday Blitz"]
[Site "Chess.com"]
[Date "2020.04.07"]
[Round "3"]
[White "norwaytoadog"]
[Black "Shukh_Nikolay"]
[Result "0-1"]
[WhiteElo "2282"]
[BlackElo "2555"]
[TimeControl "180+1"]
[EndTime "13:29:51 PDT"]
[Termination "Shukh_Nikolay won on time"]

1. e4 {[%clk 0:03:00.8]} 1... e5 {[%clk 0:02:59.2]} 2. Nf3 {[%clk 0:03:00.5]}
2... Nc6 {[%clk 0:02:59.2]} 3. Bb5 {[%clk 0:03:00.3]} 3... a6 {[%clk 0:02:58.4]}
4. Ba4 {[%clk 0:03:00.2]} 4... Nf6 {[%clk 0:02:58]} 5. O-O {[%clk 0:03:00.4]}
5... Nxe4 {[%clk 0:02:58.1]} 6. d4 {[%clk 0:03:00.3]} 6... b5 {[%clk 0:02:57.4]}
7. Bb3 {[%clk 0:03:00.3]} 7... d5 {[%clk 0:02:57.9]} 8. dxe5 {[%clk 0:03:00.2]}
8... Be6 {[%clk 0:02:58.5]} 9. Nbd2 {[%clk 0:02:59.4]} 9... Nc5 {[%clk 0:02:58]}
10. c3 {[%clk 0:02:56.1]} 10... Be7 {[%clk 0:02:55.7]} 11. Re1 {[%clk
0:02:47.6]} 11... Bg4 {[%clk 0:02:53.6]} 12. Bc2 {[%clk 0:02:37.2]} 12... O-O
{[%clk 0:02:51.4]} 13. Nb3 {[%clk 0:02:31.9]} 13... Ne6 {[%clk 0:02:50.5]} 14.
h3 {[%clk 0:02:21.2]} 14... Bh5 {[%clk 0:02:49.4]} 15. a4 {[%clk 0:01:44.8]}
15... b4 {[%clk 0:02:47.1]} 16. a5 {[%clk 0:01:38.9]} 16... Rb8 {[%clk
0:02:26.5]} 17. Qe2 {[%clk 0:01:22.1]} 17... Qc8 {[%clk 0:02:04.4]} 18. g4
{[%clk 0:01:13.6]} 18... Bg6 {[%clk 0:02:03.5]} 19. Nbd4 {[%clk 0:01:10.8]}
19... Ncxd4 {[%clk 0:01:58.8]} 20. cxd4 {[%clk 0:01:05.5]} 20... c5 {[%clk
0:01:51.7]} 21. Be3 {[%clk 0:00:48.7]} 21... cxd4 {[%clk 0:01:44.1]} 22. Bxg6
{[%clk 0:00:43]} 22... dxe3 {[%clk 0:01:40.5]} 23. Bf5 {[%clk 0:00:37]} 23...
exf2+ {[%clk 0:01:37.6]} 24. Qxf2 {[%clk 0:00:34.8]} 24... Bc5 {[%clk
0:01:31.8]} 25. Re3 {[%clk 0:00:32.9]} 25... g6 {[%clk 0:01:24.8]} 26. Bd3
{[%clk 0:00:25.2]} 26... Nf4 {[%clk 0:01:20.3]} 27. Bf1 {[%clk 0:00:22.5]} 27...
Bxe3 {[%clk 0:01:05.2]} 28. Qxe3 {[%clk 0:00:22.3]} 28... Ne6 {[%clk 0:01:05.2]}
29. Qh6 {[%clk 0:00:20.4]} 29... Qc5+ {[%clk 0:00:56.6]} 30. Kg2 {[%clk
0:00:17.4]} 30... Qc2+ {[%clk 0:00:54.9]} 31. Kg3 {[%clk 0:00:16.2]} 31... Qxb2
{[%clk 0:00:43.5]} 32. Rc1 {[%clk 0:00:15.8]} 32... Rbc8 {[%clk 0:00:40.5]} 33.
Rxc8 {[%clk 0:00:13.4]} 33... Rxc8 {[%clk 0:00:41]} 34. Bxa6 {[%clk 0:00:10.8]}
34... Rc3 {[%clk 0:00:39.1]} 35. Bb7 {[%clk 0:00:08]} 35... Qe2 {[%clk
0:00:30.4]} 36. Bxd5 {[%clk 0:00:06.3]} 36... Qxe5+ {[%clk 0:00:29.4]} 37. Kf2
{[%clk 0:00:04.7]} 37... Qxd5 {[%clk 0:00:28.4]} 38. a6 {[%clk 0:00:04.2]} 38...
Qxf3+ {[%clk 0:00:27.6]} 0-1

[Event "*** Titled Tuesday Blitz"]
[Site "Chess.com"]
[Date "2020.04.07"]
[Round "3"]
[White "LikeWater"]
[Black "Oleksandr_Bortnyk"]
[Result "0-1"]
[WhiteElo "2690"]
[BlackElo "2990"]
[TimeControl "180+1"]
[EndTime "13:29:54 PDT"]
[Termination "Oleksandr_Bortnyk won on time"]

1. e4 {[%clk 0:03:00.9]} 1... Nf6 {[%clk 0:02:59.7]} 2. e5 {[%clk 0:02:59.7]}
2... Nd5 {[%clk 0:02:59.4]} 3. c4 {[%clk 0:03:00]} 3... Nb6 {[%clk 0:02:59.4]}
4. c5 {[%clk 0:03:00.5]} 4... Nd5 {[%clk 0:02:59.7]} 5. Bc4 {[%clk 0:03:00.9]}
5... e6 {[%clk 0:03:00.1]} 6. Nc3 {[%clk 0:03:01.3]} 6... Nxc3 {[%clk
0:03:00.4]} 7. dxc3 {[%clk 0:03:02.2]} 7... Bxc5 {[%clk 0:02:58.8]} 8. Qg4
{[%clk 0:03:02.4]} 8... Kf8 {[%clk 0:02:56.9]} 9. Nf3 {[%clk 0:02:54.8]} 9... d5
{[%clk 0:02:54.4]} 10. Bd3 {[%clk 0:02:55.1]} 10... Be7 {[%clk 0:02:44.3]} 11.
h4 {[%clk 0:02:53.6]} 11... c5 {[%clk 0:02:38.9]} 12. Bg5 {[%clk 0:02:47.8]}
12... h6 {[%clk 0:02:37.6]} 13. Bxe7+ {[%clk 0:02:32.2]} 13... Qxe7 {[%clk
0:02:38.5]} 14. O-O-O {[%clk 0:02:30.1]} 14... Nc6 {[%clk 0:02:36.3]} 15. Qf4
{[%clk 0:02:27]} 15... c4 {[%clk 0:02:30.2]} 16. Bb1 {[%clk 0:02:20.4]} 16... b5
{[%clk 0:02:30.9]} 17. g4 {[%clk 0:02:14.8]} 17... b4 {[%clk 0:02:30.2]} 18. g5
{[%clk 0:02:14]} 18... bxc3 {[%clk 0:02:28.4]} 19. bxc3 {[%clk 0:02:12.3]} 19...
Rb8 {[%clk 0:02:28.1]} 20. gxh6 {[%clk 0:01:53.6]} 20... Rxh6 {[%clk 0:01:26.6]}
21. Rhg1 {[%clk 0:01:53.2]} 21... Qa3+ {[%clk 0:01:25.4]} 22. Kd2 {[%clk
0:01:53.7]} 22... Rb2+ {[%clk 0:01:25.7]} 23. Ke1 {[%clk 0:01:54]} 23... Qxc3+
{[%clk 0:01:24.2]} 24. Kf1 {[%clk 0:01:54.6]} 24... Ba6 {[%clk 0:00:46.9]} 25.
Rxg7 {[%clk 0:01:33.5]} 25... Kxg7 {[%clk 0:00:36.8]} 26. Qg5+ {[%clk
0:01:33.3]} 26... Kf8 {[%clk 0:00:26.7]} 27. Qxh6+ {[%clk 0:01:30.4]} 27... Ke8
{[%clk 0:00:27.3]} 28. Qf6 {[%clk 0:00:14.5]} 28... Rxb1 {[%clk 0:00:26]} 29.
Rxb1 {[%clk 0:00:14]} 29... Qd3+ {[%clk 0:00:26.5]} 30. Kg2 {[%clk 0:00:13.4]}
30... Qxb1 {[%clk 0:00:27.4]} 31. h5 {[%clk 0:00:06.5]} 31... Qf5 {[%clk
0:00:22.4]} 32. Qh8+ {[%clk 0:00:06.6]} 32... Kd7 {[%clk 0:00:22.4]} 33. h6
{[%clk 0:00:06.9]} 33... Qg4+ {[%clk 0:00:22.9]} 34. Kh2 {[%clk 0:00:06.8]}
34... Qxf3 {[%clk 0:00:22.9]} 35. h7 {[%clk 0:00:04.4]} 35... Qxf2+ {[%clk
0:00:22.3]} 36. Kh1 {[%clk 0:00:03.1]} 36... Qh4+ {[%clk 0:00:20.8]} 37. Kg1
{[%clk 0:00:03]} 37... Qg5+ {[%clk 0:00:21.4]} 38. Kf2 {[%clk 0:00:01.9]} 38...
Nxe5 {[%clk 0:00:21.4]} 39. Qg8 {[%clk 0:00:01.8]} 39... Qf4+ {[%clk 0:00:21.2]}
40. Kg1 {[%clk 0:00:01.7]} 40... Ng6 {[%clk 0:00:19.3]} 0-1

[Event "*** Titled Tuesday Blitz"]
[Site "Chess.com"]
[Date "2020.04.07"]
[Round "3"]
[White "BobanBogosavljevic"]
[Black "Agent-JL"]
[Result "1-0"]
[WhiteElo "2759"]
[BlackElo "2422"]
[TimeControl "180+1"]
[EndTime "13:29:54 PDT"]
[Termination "BobanBogosavljevic won by resignation"]

1. Nf3 {[%clk 0:03:00.9]} 1... Nf6 {[%clk 0:02:59.2]} 2. c4 {[%clk 0:02:56.8]}
2... c5 {[%clk 0:02:58.1]} 3. g3 {[%clk 0:02:56.7]} 3... g6 {[%clk 0:02:53.5]}
4. Bg2 {[%clk 0:02:56.8]} 4... Bg7 {[%clk 0:02:53.2]} 5. O-O {[%clk 0:02:57.7]}
5... d6 {[%clk 0:02:53.8]} 6. d4 {[%clk 0:02:58]} 6... Nbd7 {[%clk 0:02:53.2]}
7. Nc3 {[%clk 0:02:57.1]} 7... O-O {[%clk 0:02:53]} 8. b3 {[%clk 0:02:54.9]}
8... cxd4 {[%clk 0:02:47.9]} 9. Nxd4 {[%clk 0:02:52.9]} 9... a6 {[%clk
0:02:48.4]} 10. Bb2 {[%clk 0:02:52.4]} 10... Qa5 {[%clk 0:02:42.8]} 11. Qd2
{[%clk 0:02:52.3]} 11... Re8 {[%clk 0:02:41.5]} 12. Rfd1 {[%clk 0:02:52.2]}
12... Rb8 {[%clk 0:02:40.1]} 13. Rac1 {[%clk 0:02:48.9]} 13... Nc5 {[%clk
0:02:39.4]} 14. a3 {[%clk 0:02:29.7]} 14... Ne6 {[%clk 0:02:27.8]} 15. b4 {[%clk
0:02:22.4]} 15... Qb6 {[%clk 0:02:23.2]} 16. Nb3 {[%clk 0:02:02.9]} 16... Bd7
{[%clk 0:02:11.8]} 17. e3 {[%clk 0:02:00.6]} 17... Rbc8 {[%clk 0:02:10.1]} 18.
Nd5 {[%clk 0:01:50.5]} 18... Nxd5 {[%clk 0:02:05.4]} 19. Bxd5 {[%clk 0:01:40.5]}
19... Qa7 {[%clk 0:01:13]} 20. Bxg7 {[%clk 0:01:36.1]} 20... Kxg7 {[%clk
0:01:10.4]} 21. h4 {[%clk 0:01:33.2]} 21... h5 {[%clk 0:01:05.2]} 22. Bg2 {[%clk
0:01:30.2]} 22... Ba4 {[%clk 0:01:01.1]} 23. Qb2+ {[%clk 0:01:29.3]} 23... Kg8
{[%clk 0:01:00.6]} 24. Rd2 {[%clk 0:01:29.8]} 24... Rc7 {[%clk 0:00:57.5]} 25.
Bd5 {[%clk 0:01:11.3]} 25... Ng7 {[%clk 0:00:52.4]} 26. Qb1 {[%clk 0:00:56]}
26... Rec8 {[%clk 0:00:45.2]} 27. c5 {[%clk 0:00:40.1]} 27... Bxb3 {[%clk
0:00:31.3]} 28. Bxb3 {[%clk 0:00:39.6]} 28... dxc5 {[%clk 0:00:26.1]} 29. Qxg6
{[%clk 0:00:38.1]} 29... c4 {[%clk 0:00:25.9]} 30. Rxc4 {[%clk 0:00:24.8]} 30...
fxg6 {[%clk 0:00:14.8]} 31. Rxc7+ {[%clk 0:00:24.5]} 31... Kh7 {[%clk
0:00:14.8]} 32. Rxc8 {[%clk 0:00:24.1]} 32... Nf5 {[%clk 0:00:14.5]} 33. Rd7
{[%clk 0:00:22.6]} 33... Kg7 {[%clk 0:00:11.3]} 34. e4 {[%clk 0:00:20]} 34...
Nxg3 {[%clk 0:00:08.7]} 35. Rxe7+ {[%clk 0:00:19.5]} 35... Kf6 {[%clk
0:00:09.1]} 36. Rf7+ {[%clk 0:00:19.6]} 36... Ke5 {[%clk 0:00:09.2]} 37. Rc5+
{[%clk 0:00:19.3]} 37... Kxe4 {[%clk 0:00:07.4]} 38. fxg3 {[%clk 0:00:19.6]}
38... a5 {[%clk 0:00:06.4]} 39. Rf4+ {[%clk 0:00:19.4]} 39... Kd3 {[%clk
0:00:06.4]} 40. Bc4+ {[%clk 0:00:18.2]} 40... Kc3 {[%clk 0:00:05.5]} 41. Bf1+
{[%clk 0:00:17]} 41... Kb2 {[%clk 0:00:05.6]} 42. Rf2+ {[%clk 0:00:16.2]} 42...
Kxa3 {[%clk 0:00:05.8]} 43. Rxa5+ {[%clk 0:00:16.2]} 1-0

[Event "*** Titled Tuesday Blitz"]
[Site "Chess.com"]
[Date "2020.04.07"]
[Round "3"]
[White "hongnhung1234"]
[Black "djogrodek1"]
[Result "0-1"]
[WhiteElo "2166"]
[BlackElo "2518"]
[TimeControl "180+1"]
[EndTime "13:29:54 PDT"]
[Termination "djogrodek1 won by resignation"]

1. e4 {[%clk 0:03:00.8]} 1... c6 {[%clk 0:02:57.5]} 2. d4 {[%clk 0:02:59.5]}
2... d5 {[%clk 0:02:58.4]} 3. f3 {[%clk 0:02:59.9]} 3... e6 {[%clk 0:02:56.4]}
4. Nc3 {[%clk 0:02:59.3]} 4... Qb6 {[%clk 0:02:55.2]} 5. a3 {[%clk 0:02:58.5]}
5... Nf6 {[%clk 0:02:52.3]} 6. Be3 {[%clk 0:02:58]} 6... Qc7 {[%clk 0:02:51.6]}
7. Nge2 {[%clk 0:02:46.5]} 7... b6 {[%clk 0:02:43.5]} 8. Bf4 {[%clk 0:02:37.4]}
8... Qd8 {[%clk 0:02:41.3]} 9. Qd2 {[%clk 0:02:37]} 9... Ba6 {[%clk 0:02:38.9]}
10. O-O-O {[%clk 0:02:35.1]} 10... Be7 {[%clk 0:02:34.8]} 11. h4 {[%clk
0:02:31.4]} 11... Nbd7 {[%clk 0:02:28]} 12. h5 {[%clk 0:02:29.4]} 12... h6
{[%clk 0:02:21.2]} 13. e5 {[%clk 0:02:24]} 13... Ng8 {[%clk 0:02:19.6]} 14. Kb1
{[%clk 0:02:17.8]} 14... c5 {[%clk 0:02:17]} 15. dxc5 {[%clk 0:02:05.2]} 15...
Bxc5 {[%clk 0:02:05.6]} 16. Nd4 {[%clk 0:01:54.1]} 16... Bxf1 {[%clk 0:02:05.2]}
17. Rhxf1 {[%clk 0:01:45.6]} 17... a6 {[%clk 0:02:05.5]} 18. Nxd5 {[%clk
0:01:40.4]} 18... exd5 {[%clk 0:01:32.1]} 19. e6 {[%clk 0:01:30.3]} 19... Ndf6
{[%clk 0:01:32.4]} 20. exf7+ {[%clk 0:01:17]} 20... Kxf7 {[%clk 0:01:33.3]} 21.
Qd3 {[%clk 0:01:15.7]} 21... Ne7 {[%clk 0:01:30.6]} 22. Rde1 {[%clk 0:01:12.7]}
22... Bxd4 {[%clk 0:01:18.3]} 23. Qxd4 {[%clk 0:01:13.6]} 23... Re8 {[%clk
0:01:16.5]} 24. g4 {[%clk 0:00:56.3]} 24... Qd7 {[%clk 0:01:13]} 25. g5 {[%clk
0:00:45.6]} 25... hxg5 {[%clk 0:01:12.1]} 26. Bxg5 {[%clk 0:00:46.5]} 26... Rac8
{[%clk 0:01:06.3]} 27. h6 {[%clk 0:00:32.4]} 27... Qf5 {[%clk 0:01:02.5]} 28.
Rg1 {[%clk 0:00:27]} 28... g6 {[%clk 0:00:45.2]} 29. Re2 {[%clk 0:00:12.9]}
29... Nc6 {[%clk 0:00:42.4]} 30. Qd2 {[%clk 0:00:08.3]} 30... Rxe2 {[%clk
0:00:41.5]} 31. Qxe2 {[%clk 0:00:07.7]} 31... Nd4 {[%clk 0:00:41.3]} 32. Qd3
{[%clk 0:00:04.8]} 32... Qxd3 {[%clk 0:00:40]} 33. cxd3 {[%clk 0:00:05.7]} 33...
Nxf3 {[%clk 0:00:40.2]} 34. Rg3 {[%clk 0:00:05.6]} 34... Nxg5 {[%clk 0:00:40.2]}
35. Rxg5 {[%clk 0:00:06.5]} 35... Rh8 {[%clk 0:00:40.1]} 36. Rg4 {[%clk
0:00:05.2]} 36... Nxg4 {[%clk 0:00:39.7]} 0-1